bitfinex/quotes_ETHUSD_20240820
["timestamp","ask_amount","ask_price","bid_price","bid_amount"]
[1724186333503,3.83467,2607.8,2607.4,0.55]
[1724186334109,3.83488,2607.7,2607.4,0.55]
[1724186336091,3.83494,2607.6,2607.4,0.55]
[1724186336413,3.83509,2607.5,2607.4,0.55]
[1724186336623,3.83525,2607.4,2607.2,0.55]
[1724186337719,3.8351,2607.5,2607.2,0.55]
[1724186338299,3.83538,2607.3,2607.2,0.55]
[1724186339301,4.25177219,2607.3,2607.2,0.55]
[1724186340005,0.41639219,2607.3,2607.2,0.55]
[1724186342636,0.41639219,2607.3,2607.2,6.70863]
[1724186343304,0.41639219,2607.3,2607.2,2.8731]
[1724186345655,0.41639219,2607.3,2607.2,22.3431]
[1724186346436,0.41639219,2607.3,2607.2,28.958702]
[1724186349749,0.41639219,2607.3,2607.2,32.794232]
[1724186350314,0.41639219,2607.3,2607.2,37.96493807]
[1724186350516,0.41639219,2607.3,2607.2,37.96487539]
[1724186351564,0.41639219,2607.3,2607.2,36.629762]
[1724186351716,0.41639219,2607.3,2607.2,32.794232]
[1724186356267,0.41639219,2607.3,2607.2,36.629762]
[1724186356479,0.41639219,2607.3,2607.2,32.794232]
[1724186358874,0.41639219,2607.3,2607.2,36.629762]
[1724186359168,0.41639219,2607.3,2607.2,39.9676692]
[1724186359684,0.41639219,2607.3,2607.2,36.1321392]
[1724186360167,0.41639219,2607.3,2607.2,34.12939488]
[1724186360469,0.41639219,2607.3,2607.2,36.13202843]
[1724186361796,0.41639219,2607.3,2607.2,39.96755843]
[1724186361940,0.41639219,2607.3,2607.2,40.77141021]
[1724186362436,0.41639219,2607.3,2607.2,39.96755843]
[1724186362877,3.83377,2608.4,2607.9,6.18315]
[1724186363044,3.83392,2608.3,2608.0,20.22192281]
[1724186363244,0.40285036,2608.2,2608.0,20.22192281]
[1724186366376,0.40285036,2608.2,2608.1,19.05360781]
[1724186366579,0.40285036,2608.2,2608.1,19.60360781]
[1724186377313,0.40285036,2608.2,2608.1,0.55]
[1724186377515,0.40285036,2608.2,2608.1,15.09932028]
[1724186381095,0.40285036,2608.2,2608.1,34.15292809]
[1724186383235,0.12032932,2608.2,2608.1,40.19932809]
[1724186383523,0.12032932,2608.2,2608.1,38.37172809]
[1724186384086,0.12032932,2608.2,2608.1,39.70633337]
[1724186384485,0.12032932,2608.2,2608.1,38.37172809]
[1724186385735,0.12032932,2608.2,2608.1,46.54050684]
[1724186385887,0.00844467,2608.2,2608.1,48.54233738]
[1724186386329,0.00059266,2608.2,2608.1,49.345187]
[1724186386537,0.00059266,2608.2,2608.1,48.54233738]
[1724186386908,0.00059266,2608.2,2608.1,49.34517485]
[1724186387121,6.56627872,2609.5,2608.9,3.83292]
[1724186387321,6.56627872,2609.5,2609.1,1.622]
[1724186387524,6.56627872,2609.5,2609.2,0.55]
[1724186389798,3.83231,2609.4,2609.2,0.55]
[1724186390423,7.66471,2609.4,2609.2,0.55]
[1724186390900,3.83244,2609.3,2609.2,0.55]
[1724186392041,3.83244,2609.3,2609.1,0.55]
[1724186393122,3.83244,2609.3,2609.1,19.60301515]
[1724186393399,2.2733,2609.2,2609.1,19.60301515]
[1724186394926,6.10589,2609.2,2609.1,19.60301515]
[1724186397054,9.93848,2609.2,2609.1,19.60301515]
[1724186397366,9.93848,2609.2,2609.1,19.05301515]
[1724186401273,2.2733,2609.2,2609.1,19.05301515]
[1724186401564,10.03044,2609.4,2609.1,19.60301515]
[1724186401712,6.19801,2609.4,2609.2,0.55]
[1724186401917,0.40111872,2609.5,2609.2,21.78051667]
[1724186402159,5.41360302,2609.7,2609.2,19.60301515]
[1724186402345,10.07448,2609.3,2609.2,19.60301515]
[1724186403229,10.07448,2609.3,2609.2,19.05301515]
[1724186404919,3.83283,2609.1,2608.8,19.05301515]
[1724186405221,7.66566,2609.1,2608.9,0.55]
[1724186405918,3.83288,2609.0,2608.9,0.55]
[1724186407743,3.83283,2609.1,2608.9,0.55]
[1724186408559,3.83261,2609.2,2608.9,0.55]
[1724186410749,3.83257,2609.3,2609.0,2.2968]
[1724186411059,3.83217,2609.5,2609.1,19.60301515]
[1724186411262,3.0,2609.4,2609.1,19.60301515]
[1724186411628,6.83231,2609.4,2609.1,19.60301515]
[1724186412054,6.83231,2609.4,2609.1,22.79053333]
[1724186412362,3.0,2609.4,2609.1,22.79053333]
[1724186412939,6.83232,2609.4,2609.1,22.79053333]
[1724186413436,3.83247,2609.3,2609.1,22.79053333]
[1724186413760,3.83247,2609.3,2609.1,19.60301515]
[1724186414570,6.83232,2609.4,2609.1,19.60301515]
[1724186414740,3.83251,2609.3,2609.1,19.60301515]
[1724186415169,7.66518,2609.2,2609.1,19.60301515]
[1724186415353,7.66518,2609.2,2609.1,19.05301515]
[1724186416789,7.66518,2609.2,2609.1,0.55]
[1724186417138,3.83284,2609.1,2609.0,0.55]
[1724186417947,3.83259,2609.2,2609.0,1.4818222]
[1724186418751,7.66526,2609.2,2609.0,1.4818222]
[1724186419885,7.66526,2609.2,2609.0,0.55]
[1724186420087,3.83259,2609.2,2609.0,0.55]
[1724186420452,7.71336302,2609.1,2609.0,0.55]
[1724186420631,7.66576,2609.0,2608.9,19.05301515]
[1724186420827,7.66576,2609.0,2608.9,19.60301515]
[1724186422352,3.83275,2609.1,2608.9,19.60301515]
[1724186422548,3.83269,2609.2,2608.9,25.71001667]
[1724186422763,3.83269,2609.2,2609.0,19.60301515]
[1724186423478,3.83246,2609.3,2609.0,19.60301515]
[1724186423679,3.83246,2609.3,2609.0,22.55732582]
[1724186424236,3.83246,2609.3,2609.2,2.3625]
[1724186424437,3.83215,2609.5,2609.2,2.9125]
[1724186424637,3.83215,2609.5,2609.2,2.3625]
[1724186424838,3.83215,2609.5,2609.3,0.94845]
[1724186425035,3.83215,2609.5,2609.3,2.57045]
[1724186425478,3.83215,2609.5,2609.3,0.94845]
[1724186426325,7.66441,2609.5,2609.3,0.94845]
[1724186426692,3.83215,2609.5,2609.3,0.94845]
[1724186428726,3.83215,2609.5,2609.3,20.00146515]
[1724186429794,3.83215,2609.5,2609.4,2.23639652]
[1724186430151,3.83215,2609.5,2609.4,2.78639652]
[1724186438629,3.83215,2609.5,2609.4,0.55]
[1724186440666,3.83195,2609.7,2609.4,0.55]
[1724186440829,3.83166,2609.9,2609.5,4.5062]
[1724186441029,3.83166,2609.9,2609.5,23.55921515]
[1724186441229,3.83166,2609.9,2609.6,2.73914352]
[1724186441433,3.83143,2610.0,2609.7,0.55]
[1724186441973,1.0,2610.1,2609.9,1.622]
[1724186442274,1.0,2610.1,2610.0,2.85092151]
[1724186442275,4.83127,2610.1,2610.0,2.85092151]
[1724186442484,4.83127,2610.1,2610.0,0.55]
[1724186442758,4.83127,2610.1,2609.9,0.55]
[1724186443737,3.83141,2610.0,2609.9,0.55]
[1724186444528,7.66282,2610.0,2609.9,0.55]
[1724186444870,3.83156,2609.9,2609.8,19.05301515]
[1724186445054,3.83156,2609.9,2609.4,1.622]
[1724186445055,3.83215,2609.5,2609.4,19.05301515]
[1724186445580,7.6643,2609.5,2609.4,19.05301515]
[1724186446647,7.6643,2609.5,2609.0,4.0256]
[1724186446973,7.6643,2609.5,2608.7,2.3416]
[1724186446974,3.833,2609.0,2608.7,2.3416]
[1724186447143,3.833,2609.0,2608.4,3.83368]
[1724186447144,3.83326,2608.8,2608.4,3.9636]
[1724186448572,3.83326,2608.8,2608.4,2.3416]
[1724186449845,3.83307,2608.9,2608.5,1.167539]
[1724186451448,3.8332,2608.8,2608.5,1.167539]
[1724186452558,3.8332,2608.8,2608.5,20.22055415]
[1724186453383,0.43389109,2608.7,2608.5,20.22055415]
[1724186458690,4.26721109,2608.7,2608.6,19.05301515]
[1724186458989,4.26721109,2608.7,2608.6,19.60301515]
[1724186461692,8.14843411,2608.7,2608.6,19.60301515]
[1724186461893,8.10053109,2608.7,2608.6,19.60301515]
[1724186463865,4.26721109,2608.7,2608.6,19.60301515]
[1724186464066,4.26721109,2608.7,2608.6,21.56331667]
[1724186464298,4.26721109,2608.7,2608.6,23.93921667]
[1724186464495,4.26721109,2608.7,2608.6,4.88620152]
[1724186464666,4.26721109,2608.7,2608.6,2.9259]
[1724186467002,4.26721109,2608.7,2608.6,0.55]
[1724186467158,4.26721109,2608.7,2608.4,2.8995]
[1724186467987,3.83347,2608.6,2608.4,2.8995]
[1724186468399,3.83347,2608.6,2608.4,0.55]
[1724186468568,3.83376,2608.4,2608.3,19.05301515]
[1724186468771,3.83392,2608.3,2608.1,19.05301515]
[1724186469905,3.83406,2608.2,2608.1,19.05301515]
[1724186470202,3.83406,2608.2,2608.1,19.60301515]
[1724186471592,7.66812,2608.2,2608.1,19.05301515]
[1724186473400,3.83406,2608.2,2607.9,19.05301515]
[1724186473602,3.83406,2608.2,2608.0,0.55]
[1724186473779,3.83386,2608.4,2608.1,2.4945]
[1724186473978,3.83366,2608.5,2608.2,0.55]
[1724186474297,3.83379,2608.4,2608.2,0.90945]
[1724186474704,7.66766,2608.4,2608.2,0.90945]
[1724186475693,7.66764,2608.4,2608.2,0.90945]
[1724186475859,3.83379,2608.4,2608.2,0.90945]
[1724186476083,7.66764,2608.4,2608.2,0.90945]
[1724186476481,3.83379,2608.4,2608.2,0.90945]
[1724186477941,3.83391,2608.3,2608.2,0.55]
[1724186478267,3.83391,2608.3,2608.0,0.55]
[1724186479407,3.83391,2608.3,2608.1,19.05301515]
[1724186479616,3.83406,2608.2,2608.1,19.05301515]
[1724186479768,10.13722,2608.2,2608.1,19.05301515]
[1724186480889,7.66812,2608.2,2608.1,19.05301515]
[1724186485290,7.6684,2608.1,2608.0,0.55]
[1724186485561,7.6684,2608.1,2607.8,19.05301515]
[1724186485562,7.669,2607.9,2607.8,19.05301515]
[1724186486393,11.5035,2607.9,2607.8,19.05301515]
[1724186486682,14.5035,2607.9,2607.8,19.05301515]
[1724186487320,10.669,2607.9,2607.8,19.05301515]
[1724186487627,6.8345,2607.9,2607.8,19.05301515]
[1724186489453,3.8345,2607.9,2607.8,19.05301515]
[1724186489834,4.23527741,2608.1,2607.8,21.74987667]
[1724186490013,3.83442,2608.0,2607.9,0.55]
[1724186491261,3.83442,2608.0,2607.9,19.60301515]
[1724186492353,7.66884,2608.0,2607.9,19.60301515]
[1724186497045,3.83464,2607.8,2607.7,19.05301515]
[1724186497368,3.83464,2607.8,2607.7,19.60301515]
[1724186501174,3.83464,2607.8,2607.7,21.80487667]
[1724186502025,3.83464,2607.8,2607.7,21.80487667]
[1724186503816,3.83451,2607.9,2607.7,21.80487667]
[1724186504019,3.83438,2608.0,2607.8,0.55]
[1724186504393,7.66881,2608.0,2607.8,0.55]
[1724186504594,3.8345,2607.9,2607.8,0.55]
[1724186505719,3.83438,2608.0,2607.8,0.55]
[1724186505919,3.83438,2608.0,2607.8,2.97204767]
[1724186506816,7.66883,2608.0,2607.8,2.97204767]
[1724186507033,7.66883,2608.0,2607.8,0.55]
[1724186507698,3.8345,2607.9,2607.8,0.55]
[1724186509037,3.8345,2607.9,2607.8,19.60301515]
[1724186511425,3.83438,2608.0,2607.8,19.60301515]
[1724186511619,3.83438,2608.0,2607.9,2.293]
[1724186511846,3.83438,2608.0,2607.9,2.843]
[1724186512151,3.83412,2608.2,2607.9,3.67512538]
[1724186512313,3.83421,2608.1,2608.0,0.55]
[1724186513654,3.83412,2608.2,2608.0,0.55]
[1724186513970,3.83393,2608.3,2608.1,2.293]
[1724186514131,3.83393,2608.3,2608.2,0.55]
[1724186514332,3.83363,2608.5,2608.2,2.171]
[1724186514511,3.83363,2608.5,2608.3,0.48315125]
[1724186514717,3.83363,2608.5,2608.4,0.55]
[1724186518072,4.26724109,2608.7,2608.4,0.55]
[1724186518073,4.26724109,2608.7,2608.5,2.293]
[1724186518218,6.83347,2608.6,2608.5,2.293]
[1724186518422,6.83347,2608.6,2608.5,2.843]
[1724186519420,10.66694,2608.6,2608.5,0.55]
[1724186519586,3.83362,2608.5,2608.4,0.55]
[1724186519880,3.8338,2608.4,2608.2,0.55]
[1724186521633,3.83362,2608.5,2608.2,0.55]
[1724186522878,3.0,2608.6,2608.3,5.45481]
[1724186523082,0.43389109,2608.7,2608.5,1.621]
[1724186523383,0.43389109,2608.7,2608.6,0.55]
[1724186523881,0.43389109,2608.7,2608.5,0.55]
[1724186525178,4.26721109,2608.7,2608.5,0.55]
[1724186526991,0.43389109,2608.7,2608.5,0.55]
[1724186530385,4.26723109,2608.7,2608.5,0.55]
[1724186531919,3.83347,2608.6,2608.5,0.55]
[1724186532125,7.66694,2608.6,2608.5,0.55]
[1724186532828,3.83363,2608.5,2608.2,19.05301515]
[1724186533026,3.83347,2608.6,2608.2,19.05301515]
[1724186533027,3.83377,2608.4,2608.2,19.05301515]
[1724186534122,3.83377,2608.4,2608.3,0.55]
[1724186534553,3.83363,2608.5,2608.3,0.55]
[1724186536100,3.8335,2608.6,2608.3,0.55]
[1724186536558,7.66706,2608.6,2608.3,0.55]
[1724186536697,3.8335,2608.6,2608.3,0.55]
[1724186537112,7.66709,2608.6,2608.3,0.55]
[1724186538213,3.83363,2608.5,2608.3,0.55]
[1724186538802,3.83363,2608.5,2608.4,19.05301515]
[1724186539001,3.83349,2608.6,2608.4,19.60301515]
[1724186539299,3.83349,2608.6,2608.4,19.05301515]
[1724186539499,4.26722109,2608.7,2608.5,0.55]
[1724186539751,0.43389109,2608.7,2608.5,0.55]
[1724186542699,4.26723109,2608.7,2608.5,0.55]
[1724186543419,0.43330896,2608.6,2608.5,0.55]
[1724186544858,0.43330896,2608.6,2608.5,19.60301515]
[1724186547050,0.43330896,2608.6,2608.5,21.94191515]
[1724186549366,0.43330896,2608.6,2608.5,24.12737166]
[1724186550976,0.43330896,2608.6,2608.5,27.96099166]
[1724186554860,0.43330896,2608.6,2608.5,31.79461166]
[1724186559176,0.43330896,2608.6,2608.5,33.12919003]
[1724186559513,0.43330896,2608.6,2608.5,38.96462624]
[1724186559817,0.43330896,2608.6,2608.5,38.96449208]
[1724186561223,0.43330896,2608.6,2608.5,39.76732955]
[1724186561519,0.43330896,2608.6,2608.5,19.91147693]
[1724186561717,0.43389109,2608.7,2608.6,16.05744144]
[1724186562017,0.43389109,2608.7,2608.6,29.6571573]
[1724186562332,0.43389109,2608.7,2608.6,25.78277186]
[1724186562929,0.43389109,2608.7,2608.6,32.65710096]
[1724186564321,0.43389109,2608.7,2608.6,28.78277186]
[1724186564477,0.43389109,2608.7,2608.6,28.78207456]
[1724186564691,0.43389109,2608.7,2608.6,29.58509498]
[1724186565741,0.43389109,2608.7,2608.6,28.78207456]
[1724186567841,0.43389109,2608.7,2608.6,26.78073669]
[1724186568045,0.43389109,2608.7,2608.6,28.78220022]
[1724186568402,0.43389109,2608.7,2608.6,26.78073669]
[1724186568860,0.43389109,2608.7,2608.6,28.78219604]
[1724186569555,0.43389109,2608.7,2608.6,26.78073669]
[1724186569713,0.43389109,2608.7,2608.6,28.78218041]
[1724186569910,0.43389109,2608.7,2608.6,26.78073669]
[1724186570106,0.43389109,2608.7,2608.6,28.78218658]
[1724186570707,0.43389109,2608.7,2608.6,26.78073669]
[1724186570924,0.43389109,2608.7,2608.6,28.78216144]
[1724186571138,2.3573,2609.9,2609.6,3.8319]
[1724186571337,2.3573,2609.9,2609.7,0.55]
[1724186572048,5.3573,2610.0,2609.7,0.55]
[1724186573410,9.18871,2610.0,2609.7,0.55]
[1724186573635,9.18871,2610.0,2609.6,0.55]
[1724186573841,9.18871,2610.0,2609.5,0.55]
[1724186574410,2.3573,2609.7,2609.6,19.05301515]
[1724186574811,6.18926,2609.7,2609.6,19.60301515]
[1724186579131,2.3573,2609.7,2609.6,19.60301515]
[1724186580457,5.4291,2610.0,2609.6,19.60301515]
[1724186580796,9.26061,2610.0,2609.7,0.55]
[1724186582251,5.4291,2610.0,2609.7,0.55]
[1724186582587,6.83142,2610.0,2609.7,0.55]
[1724186584449,3.83157,2609.9,2609.7,0.55]
[1724186586486,3.83157,2609.9,2609.8,19.05301515]
[1724186586688,3.83157,2609.9,2609.8,19.60301515]
[1724186586893,7.6632,2609.9,2609.8,19.60301515]
[1724186590415,3.83157,2609.9,2609.8,19.60301515]
[1724186591405,3.8315,2610.0,2609.8,19.60301515]
[1724186591612,3.8315,2610.0,2609.9,0.55]
[1724186594607,7.71088302,2610.0,2609.9,0.55]
[1724186595249,7.71088302,2610.0,2609.9,19.60301515]
[1724186595558,7.66298,2610.0,2609.9,19.60301515]
[1724186599341,7.66298,2610.0,2609.9,19.05301515]
[1724186600227,13.06678,2610.0,2609.9,19.05301515]
[1724186600849,7.6643,2609.5,2609.4,19.05301515]
[1724186601355,3.83259,2609.2,2609.0,19.05301515]
[1724186601511,3.83259,2609.2,2609.1,19.05301515]
[1724186601949,3.83233,2609.4,2609.1,19.05301515]
[1724186601950,3.83247,2609.3,2609.1,19.05301515]
[1724186602157,3.83232,2609.4,2609.1,19.05301515]
[1724186602374,3.83232,2609.4,2609.1,21.56894967]
[1724186602918,3.83232,2609.4,2609.2,0.55]
[1724186604047,7.66473,2609.4,2609.2,0.55]
[1724186604344,3.83232,2609.4,2609.2,0.55]
[1724186605730,3.83244,2609.3,2609.2,0.55]
[1724186607271,3.83244,2609.3,2609.2,19.60301515]
[1724186607816,3.83231,2609.4,2609.2,19.60301515]
[1724186608682,7.6647,2609.4,2609.2,19.60301515]
[1724186609128,3.83244,2609.3,2609.2,19.60301515]
[1724186611118,3.83231,2609.4,2609.2,19.60301515]
[1724186611316,3.83231,2609.4,2609.2,24.09621667]
[1724186611861,3.83231,2609.4,2609.2,21.72541667]
[1724186612061,3.83231,2609.4,2609.2,19.60301515]
[1724186612373,3.83244,2609.3,2609.2,19.60301515]
[1724186613155,3.83244,2609.3,2609.2,19.60142119]
[1724186615764,3.83231,2609.4,2609.2,19.60142119]
[1724186616959,3.83244,2609.3,2609.2,19.60142119]
[1724186620830,3.83232,2609.4,2609.2,19.60142119]
[1724186621334,10.02638,2609.3,2609.2,19.05301515]
[1724186621970,10.02638,2609.3,2609.2,19.60301515]
[1724186621971,3.83244,2609.3,2609.2,19.60301515]
[1724186622171,6.83223,2609.5,2609.2,19.60301515]
[1724186622368,6.83223,2609.5,2609.3,0.55]
[1724186623671,3.83238,2609.4,2609.3,0.55]
[1724186623874,6.83223,2609.5,2609.3,4.78780152]
[1724186624085,3.83195,2609.7,2609.3,4.78780152]
[1724186624427,4.23277549,2609.8,2609.3,8.62016152]
[1724186624784,3.83153,2610.0,2609.6,1.621]
[1724186624955,3.83127,2610.1,2609.7,21.88051515]
[1724186625157,7.66266,2610.1,2609.7,21.88051515]
[1724186625357,7.66266,2610.1,2609.7,24.61387467]
[1724186625667,7.66263,2610.1,2609.7,24.61387467]
[1724186626584,3.83127,2610.1,2609.7,24.61387467]
[1724186626956,0.40103293,2610.2,2609.7,24.61387467]
[1724186626957,0.40103293,2610.2,2609.9,2.2775]
[1724186627162,0.40103293,2610.2,2610.0,19.60301515]
[1724186627360,4.23218293,2610.2,2610.0,19.60301515]
[1724186630764,3.83127,2610.1,2610.0,19.60301515]
[1724186633704,4.19417671,2610.1,2610.0,19.60301515]
[1724186634762,4.19417671,2610.1,2610.0,21.88051515]
[1724186639321,4.19417671,2610.1,2610.0,19.60301515]
[1724186640330,8.02544671,2610.1,2610.0,19.60301515]
[1724186642433,4.19417671,2610.1,2610.0,19.60301515]
[1724186651200,0.36290671,2610.1,2610.0,25.25843277]
[1724186652350,0.36290671,2610.1,2610.0,29.08984277]
[1724186654025,0.36290671,2610.1,2610.0,10.03682762]
[1724186654224,0.36290671,2610.1,2610.0,8.41582762]
[1724186654701,0.36290671,2610.1,2610.0,6.70011]
[1724186663747,0.36290671,2610.1,2610.0,25.75312515]
[1724186667372,0.36290671,2610.1,2610.0,29.58453515]
[1724186668227,0.36290671,2610.1,2610.0,25.75312515]
[1724186668533,0.36290671,2610.1,2610.0,21.92171515]
[1724186670768,0.36290671,2610.1,2610.0,19.60301515]
[1724186671597,4.19417671,2610.1,2610.0,19.60301515]
[1724186672277,0.36290671,2610.1,2610.0,19.60301515]
[1724186694802,0.36290671,2610.1,2610.0,22.32963867]
[1724186696961,0.36290671,2610.1,2610.0,28.51884867]
[1724186697188,0.36290671,2610.1,2610.0,33.97125867]
[1724186697972,0.36290671,2610.1,2610.0,35.30512105]
[1724186698483,0.36290671,2610.1,2610.0,37.30589838]
[1724186699374,0.36290671,2610.1,2610.0,33.97125867]
[1724186699705,0.36290671,2610.1,2610.0,35.30508751]
[1724186700064,0.36290671,2610.1,2610.0,33.68408751]
[1724186700360,0.36290671,2610.1,2610.0,29.85267751]
[1724186700589,0.36290671,2610.1,2610.0,28.51884867]
[1724186701310,0.36290671,2610.1,2610.0,19.05301515]
[1724186702900,0.36290671,2610.1,2610.0,19.60301515]
[1724186709720,0.36290671,2610.1,2610.0,23.43442515]
[1724186710012,0.36290671,2610.1,2610.0,19.60301515]
[1724186714818,9.64644671,2610.1,2610.0,19.05301515]
[1724186715296,3.83171,2609.8,2609.6,19.05301515]
[1724186715641,3.83156,2609.9,2609.6,19.05301515]
[1724186717091,3.83156,2609.9,2609.7,0.55]
[1724186717588,3.83143,2610.0,2609.7,0.55]
[1724186718055,3.83156,2609.9,2609.7,0.55]
[1724186720254,3.83156,2609.9,2609.8,19.05301515]
[1724186720495,3.83156,2609.9,2609.8,19.60301515]
[1724186723789,4.14896604,2609.9,2609.8,19.60301515]
[1724186728972,8.02849906,2609.9,2609.8,19.60301515]
[1724186729185,11.90629906,2609.9,2609.8,19.60301515]
[1724186729396,15.69002604,2609.9,2609.8,19.05301515]
[1724186729592,18.69002604,2609.9,2609.8,19.05301515]
[1724186732182,3.83215,2609.5,2609.4,19.05301515]
[1724186732386,3.83215,2609.5,2609.4,19.60301515]
[1724186734011,3.83215,2609.5,2608.9,7.66592]
[1724186734012,3.83259,2609.2,2609.1,19.05301515]
[1724186734322,9.97086,2609.0,2608.9,19.05301515]
[1724186734625,11.59186,2609.0,2608.9,19.05301515]
[1724186735271,11.59186,2609.0,2608.5,19.05301515]
[1724186735272,3.83346,2608.7,2608.5,19.05301515]
[1724186735604,3.83346,2608.7,2608.4,2.2966]
[1724186735605,3.83346,2608.7,2608.6,19.05301515]
[1724186736914,3.83346,2608.7,2608.6,19.60301515]
[1724186738015,3.83321,2608.8,2608.6,19.60301515]
[1724186738173,3.83321,2608.8,2608.7,0.55]
[1724186738373,3.83303,2609.0,2608.7,0.55]
[1724186738584,3.83302,2609.0,2608.7,0.55]
[1724186738999,3.83305,2608.9,2608.7,0.55]
[1724186741004,3.83305,2608.9,2608.8,19.05301515]
[1724186741200,3.83305,2608.9,2608.8,19.60301515]
[1724186745434,7.66619,2608.9,2608.8,19.60301515]
[1724186756612,3.83305,2608.9,2608.8,19.60301515]
[1724186764260,7.66608,2608.9,2608.8,19.60301515]
[1724186764577,11.76608,2608.9,2608.8,19.05301515]
[1724186764783,18.59911,2608.9,2608.8,19.05301515]
[1724186764987,18.59911,2608.9,2607.8,19.05301515]
[1724186764988,3.83406,2608.2,2607.8,19.05301515]
[1724186765287,3.83406,2608.2,2607.9,19.05301515]
[1724186765633,3.83406,2608.2,2607.8,19.05301515]
[1724186765634,3.83441,2608.0,2607.8,19.05301515]
[1724186766038,7.66824,2608.2,2607.8,19.05301515]
[1724186766400,7.93369,2608.5,2607.8,26.79458158]
[1724186766401,3.83392,2608.3,2607.8,26.79458158]
[1724186766573,3.83386,2608.4,2607.9,2.2521]
[1724186766574,7.66771,2608.4,2607.9,2.2521]
[1724186766731,3.83385,2608.4,2607.9,5.21107473]
[1724186766934,3.83396,2608.3,2607.9,9.04556473]
[1724186767236,3.83396,2608.3,2608.0,0.55]
[1724186768057,3.83369,2608.5,2608.0,0.55]
[1724186768600,3.83384,2608.4,2608.0,0.55]
[1724186768754,1.621,2608.2,2607.6,19.05301515]
[1724186769101,5.45567,2607.8,2607.6,19.05301515]
[1724186769265,3.83479,2607.7,2607.6,19.05301515]
[1724186769468,3.88269302,2607.7,2607.6,19.05301515]
[1724186771867,3.88269302,2607.7,2607.6,19.60301515]
[1724186773704,3.88269302,2607.7,2607.6,0.55]
[1724186773900,7.71758302,2607.7,2607.5,19.60301515]
[1724186774084,7.71761302,2607.7,2607.5,19.60301515]
[1724186774411,7.71761302,2607.7,2607.5,19.05301515]
[1724186774412,3.83494,2607.6,2607.5,19.05301515]
[1724186774585,7.71778302,2607.6,2607.5,19.05301515]
[1724186774912,9.33878302,2607.6,2607.5,19.05301515]
[1724186775220,12.29088,2607.6,2607.5,19.05301515]
[1724186780884,18.48372,2607.6,2607.5,19.05301515]
[1724186781891,13.02778,2607.6,2607.5,19.05301515]
[1724186782096,14.64878,2607.6,2607.5,19.05301515]
[1724186783805,18.48372,2607.6,2607.5,19.05301515]
[1724186788868,7.66988,2607.6,2607.5,19.05301515]
[1724186790653,10.66988,2607.6,2607.5,19.05301515]
[1724186790859,6.83494,2607.6,2607.5,19.05301515]
[1724186791058,0.4009254,2607.7,2607.6,2.335]
[1724186791368,3.83475,2607.8,2607.6,2.885]
[1724186791575,3.83475,2607.8,2607.7,0.55]
[1724186791728,3.83475,2607.8,2607.7,2.98020055]
[1724186795926,7.66947,2607.8,2607.7,0.55]
[1724186796925,7.66958,2607.7,2607.6,19.05301515]
[1724186797472,3.83479,2607.7,2607.4,19.05301515]
[1724186797687,3.83479,2607.7,2607.5,0.55]
[1724186797890,3.83479,2607.7,2607.5,2.74374152]
[1724186798309,3.83494,2607.6,2607.5,0.55]
[1724186798581,7.67018,2607.5,2607.4,19.05301515]
[1724186801659,16.93277,2607.5,2607.4,19.05301515]
[1724186801863,20.76786,2607.5,2607.4,19.05301515]
[1724186802018,16.93277,2607.5,2607.4,19.05301515]
[1724186802207,20.76786,2607.5,2607.4,19.05301515]
[1724186802403,16.93277,2607.5,2607.4,19.05301515]
[1724186802644,16.93277,2607.5,2607.4,9.46491515]
[1724186802645,20.76786,2607.5,2607.4,9.46491515]
[1724186803456,20.76786,2607.5,2607.4,3.71205515]
[1724186803457,16.93277,2607.5,2607.4,3.71205515]
[1724186804003,13.09768,2607.5,2607.4,3.71205515]
[1724186804254,10.67018,2607.5,2607.4,3.71205515]
[1724186806615,14.90605604,2607.5,2607.4,3.71205515]
[1724186808629,11.07096604,2607.5,2607.4,3.71205515]
[1724186809225,14.90605604,2607.5,2607.4,3.71205515]
[1724186809427,11.07096604,2607.5,2607.4,3.71205515]
[1724186810381,14.90605604,2607.5,2607.4,3.71205515]
[1724186811081,11.07096604,2607.5,2607.4,3.71205515]
[1724186811376,0.40078604,2607.5,2607.4,4.26205515]
[1724186811611,3.83489,2607.7,2607.4,4.26205515]
[1724186811729,4.23541351,2607.9,2607.5,0.55]
[1724186812081,3.83473,2607.8,2607.6,2.4645]
[1724186812925,3.0,2607.7,2607.6,2.4645]
[1724186813131,6.83479,2607.7,2607.6,3.0145]
[1724186813784,7.21082526,2607.7,2607.6,3.0145]
[1724186820268,11.04561526,2607.7,2607.6,3.0145]
[1724186823102,11.04561526,2607.7,2607.6,0.55]
[1724186823399,3.83509,2607.5,2607.4,3.71205515]
[1724186823701,7.67018,2607.5,2607.4,3.71205515]
[1724186828224,7.67018,2607.5,2607.4,6.12215515]
[1724186829613,3.83509,2607.5,2607.4,6.12215515]
[1724186829938,11.04577526,2607.7,2607.4,6.67215515]
[1724186830089,3.83498,2607.6,2607.4,6.67215515]
[1724186831445,7.21085526,2607.7,2607.4,4.26205515]
[1724186831698,3.37603526,2607.7,2607.5,2.9601]
[1724186832456,7.21083526,2607.7,2607.5,2.9601]
[1724186832764,11.04572526,2607.7,2607.5,2.9101]
[1724186832966,7.21083526,2607.7,2607.5,2.9101]
[1724186833177,11.04574526,2607.7,2607.5,2.9101]
[1724186833383,11.04575526,2607.7,2607.5,2.9101]
[1724186833537,7.21083526,2607.7,2607.5,2.9101]
[1724186833742,11.04570526,2607.7,2607.5,2.9101]
[1724186833939,11.04571526,2607.7,2607.5,2.9101]
[1724186834569,7.21083526,2607.7,2607.5,2.9101]
[1724186834725,11.04571526,2607.7,2607.5,2.9101]
[1724186835476,7.21083526,2607.7,2607.5,2.9101]
[1724186835680,0.37603526,2607.7,2607.6,2.4356]
[1724186835886,0.37603526,2607.7,2607.6,2.9856]
[1724186836783,0.37603526,2607.7,2607.6,6.82054]
[1724186839266,0.37603526,2607.7,2607.6,26.29054]
[1724186839460,0.37603526,2607.7,2607.6,29.721663]
[1724186840285,0.37603526,2607.7,2607.6,25.886723]